bitfinex/quotes_ETHUSD_20240729
["timestamp","ask_amount","ask_price","bid_price","bid_amount"]
[1722265759933,1.2574982,3329.1,3328.9,3.0]
[1722265760078,1.2574982,3329.2,3328.5,3.00433]
[1722265760284,1.57187275,3329.3,3328.5,3.00433]
[1722265760285,1.2574982,3329.3,3328.5,3.00433]
[1722265760516,1.2574982,3329.3,3328.5,3.9580729]
[1722265760902,1.25731793,3329.3,3328.5,0.9537429]
[1722265761734,1.25731793,3329.3,3328.7,3.00416]
[1722265761958,1.25731793,3329.4,3328.9,3.00396]
[1722265762095,1.25731793,3329.6,3329.0,3.06392077]
[1722265762294,4.4931892,3330.4,3329.0,3.06392077]
[1722265762295,1.25731793,3329.7,3329.1,3.0]
[1722265762520,1.25731793,3329.8,3329.2,3.00371]
[1722265762704,1.571278,3330.0,3329.3,3.0]
[1722265762705,1.25731793,3329.9,3329.3,3.0]
[1722265763141,1.25731793,3329.9,3329.2,6.0037]
[1722265763339,1.25731793,3329.8,3329.2,3.66100921]
[1722265763525,2.2934,3330.4,3329.4,3.00353]
[1722265763526,1.25731793,3329.9,3329.4,3.00353]
[1722265763706,1.25731793,3330.0,3329.3,3.0]
[1722265763940,1.25731793,3329.9,3329.3,3.0036]
[1722265764140,1.25731793,3330.0,3329.4,3.00347]
[1722265764452,1.25731793,3330.1,3329.4,3.00347]
[1722265764822,1.25731793,3330.0,3329.6,3.00334]
[1722265765048,1.25731793,3330.1,3329.6,3.00334]
[1722265765266,1.25731793,3330.2,3329.6,3.00334]
[1722265765760,1.25731793,3330.2,3329.4,3.00353]
[1722265765937,1.54009177,3330.2,3329.4,3.00353]
[1722265766145,1.54009177,3330.2,3329.1,3.0]
[1722265766146,4.26045793,3329.9,3329.1,3.0]
[1722265766310,1.25731793,3329.8,3328.8,3.00405]
[1722265766658,1.25731793,3329.8,3328.6,6.00422]
[1722265766659,1.25731793,3329.8,3329.1,3.00381]
[1722265766805,1.25731793,3329.8,3329.2,3.0]
[1722265767148,1.57042051,3330.0,3328.9,6.00393]
[1722265767149,1.25731793,3329.9,3328.9,6.00393]
[1722265767348,1.25731793,3329.8,3328.9,6.00393]
[1722265767551,1.25731793,3329.8,3328.9,3.0]
[1722265767757,1.25731793,3329.8,3328.5,2.4474]
[1722265767758,4.26054793,3329.8,3328.6,3.00417]
[1722265767931,1.25731793,3329.7,3328.7,6.00416]
[1722265768108,1.25731793,3329.6,3328.8,3.00401]
[1722265768422,1.25731793,3329.7,3328.9,3.0]
[1722265768629,1.25731793,3329.7,3329.0,3.00385]
[1722265768863,1.25731793,3329.7,3329.1,3.0]
[1722265769413,1.25731793,3329.7,3329.1,6.00379]
[1722265769955,1.25731793,3329.8,3329.1,3.0]
[1722265770124,1.25731793,3329.8,3329.0,6.00388]
[1722265770330,1.25731793,3329.8,3329.0,9.00771]
[1722265770699,1.25731793,3329.8,3329.1,3.00379]
[1722265770843,1.25731793,3329.8,3329.2,3.0]
[1722265770844,1.78646776,3329.8,3329.2,3.0]
[1722265771044,1.78646776,3329.8,3329.0,3.0]
[1722265771045,1.25731793,3329.7,3329.0,3.0]
[1722265771280,1.25731793,3329.7,3328.9,3.0]
[1722265771581,1.78646776,3329.8,3329.1,3.0038]
[1722265771785,1.25731793,3329.8,3329.2,6.00365]
[1722265771994,1.25731793,3329.8,3329.3,3.00355]
[1722265772156,1.25731793,3329.9,3329.3,3.00355]
[1722265772507,1.88457643,3330.3,3329.5,3.00343]
[1722265772508,1.25731793,3330.1,3329.5,3.00343]
[1722265772634,1.57048036,3330.3,3329.4,3.0]
[1722265772635,1.25731793,3330.3,3329.6,3.0]
[1722265772836,1.57048036,3330.5,3329.4,3.0]
[1722265772837,1.25731793,3330.1,3329.4,3.0]
[1722265773040,1.25731793,3330.2,3329.4,3.00348]
[1722265773285,1.25731793,3330.2,3328.6,3.0]
[1722265773286,3.00336,3329.6,3328.6,3.0]
[1722265773593,1.25731793,3329.4,3328.3,3.00448]
[1722265773740,1.25731793,3329.3,3328.3,0.600902]
[1722265773933,0.58312283,3329.4,3328.3,0.600902]
[1722265773934,4.84403076,3329.4,3328.3,0.600902]
[1722265774156,3.00375,3329.2,3328.0,3.00477]
[1722265774869,3.00386,3329.1,3327.8,3.30544]
[1722265775042,6.00755,3329.2,3328.0,3.00479]
[1722265775238,3.73034679,3329.1,3328.0,3.65110075]
[1722265775554,0.72648679,3329.1,3328.0,3.65110075]
[1722265775800,3.73030679,3329.1,3328.0,3.65110075]
[1722265775993,0.72648679,3329.1,3328.0,3.65110075]
[1722265776208,3.00373,3329.2,3328.1,3.0]
[1722265776391,3.00384,3329.1,3328.1,3.0]
[1722265776781,3.00396,3329.0,3328.1,3.0]
[1722265776986,3.00396,3329.0,3328.0,0.64631075]
[1722265777377,3.53211793,3329.2,3328.0,0.64631075]
[1722265777378,6.53591793,3329.2,3328.0,0.64631075]
[1722265777631,1.25731793,3329.2,3328.0,0.64631075]
[1722265777814,4.26099793,3329.3,3328.1,3.00466]
[1722265778019,3.00372,3329.2,3328.2,3.0]
[1722265778201,1.25731793,3329.3,3328.2,3.0]
[1722265778544,2.2748,3329.7,3328.8,3.004]
[1722265778545,1.25731793,3329.7,3328.8,3.004]
[1722265778679,1.25731793,3329.7,3328.6,3.00422]
[1722265778680,1.25731793,3329.8,3328.9,0.3004]
[1722265779037,1.25731793,3329.8,3328.5,2.3452]
[1722265779038,1.25731793,3329.7,3328.8,3.00402]
[1722265779251,1.25731793,3329.7,3329.2,3.00371]
[1722265779389,1.25731793,3329.9,3329.2,3.00371]
[1722265779592,1.25731793,3329.9,3329.0,3.00383]
[1722265779891,1.25731793,3329.9,3329.0,3.00382]
[1722265780286,0.28272439,3329.8,3329.2,3.00365]
[1722265780720,0.28272439,3329.8,3329.1,3.0038]
[1722265780918,0.28272439,3329.8,3329.3,3.00361]
[1722265781129,1.25731793,3329.9,3329.1,3.00373]
[1722265781304,1.25731793,3329.8,3328.9,3.00395]
[1722265781681,1.25731793,3329.7,3328.9,3.00395]
[1722265781880,1.25731793,3329.8,3328.9,3.00395]
[1722265782102,1.56970975,3329.9,3329.0,3.00389]
[1722265782103,1.5400207,3329.7,3329.0,3.00389]
[1722265782294,1.5400207,3329.7,3328.7,3.00412]
[1722265782502,3.00364,3329.3,3328.0,3.00477]
[1722265782752,3.58321793,3329.2,3327.6,3.00509]
[1722265782969,3.58321793,3329.2,3327.3,7.29]
[1722265782970,3.00421,3328.7,3327.5,3.0052]
[1722265783115,1.25731793,3328.7,3327.5,3.0052]
[1722265783324,1.25731793,3328.7,3327.3,7.43696351]
[1722265783664,0.28270277,3328.6,3327.6,3.00513]
[1722265783799,1.25731793,3328.7,3327.4,3.00532]
[1722265783998,4.57533986,3328.9,3327.1,2.3088]
[1722265783999,1.25731793,3328.6,3327.6,3.00511]
[1722265784225,1.25731793,3328.7,3327.8,3.00492]
[1722265784753,1.25731793,3328.7,3327.5,4.1955]
[1722265784919,1.25731793,3328.7,3327.9,3.00483]
[1722265785103,1.57134986,3328.9,3328.0,3.0048]
[1722265785104,1.25731793,3328.8,3328.0,3.0048]
[1722265785303,1.25731793,3328.8,3327.9,3.00487]
[1722265785534,1.25731793,3328.8,3328.0,3.00474]
[1722265785758,0.51529277,3329.1,3327.8,3.00492]
[1722265785759,1.25731793,3328.7,3327.8,3.00492]
[1722265785947,1.25731793,3328.5,3327.6,3.00516]
[1722265786258,1.25731793,3328.7,3327.9,3.00489]
[1722265786459,1.25731793,3328.7,3327.7,3.0]
[1722265786460,1.25731793,3328.7,3327.7,6.00502]
[1722265786809,1.25703504,3328.7,3327.7,6.00502]
[1722265787159,4.26136504,3328.6,3327.4,3.00532]
[1722265787311,1.25703504,3328.4,3327.4,3.00532]
[1722265787508,1.25703504,3328.4,3327.5,3.00525]
[1722265787706,1.25703504,3328.4,3327.4,3.00534]
[1722265787971,3.00478,3328.1,3326.9,7.29]
[1722265788275,2.3577,3328.2,3326.9,3.00574]
[1722265788276,6.61935504,3328.2,3326.9,3.00574]
[1722265788458,1.25703504,3328.1,3327.0,3.0057]
[1722265788603,0.6619355,3328.0,3326.9,3.00577]
[1722265788809,0.6619355,3328.0,3326.8,0.02]
[1722265788810,1.91897054,3328.0,3327.2,3.00551]
[1722265789071,0.6619355,3328.0,3327.3,3.00543]
[1722265789360,2.3577,3328.2,3327.5,3.00525]
[1722265789653,2.3577,3328.2,3327.3,3.00543]
[1722265790152,2.3577,3328.2,3327.4,3.00528]
[1722265790457,2.3577,3328.2,3327.5,3.0052]
[1722265790659,2.3577,3328.2,3327.5,3.00522]
[1722265790950,2.74745679,3328.2,3327.1,3.00555]
[1722265791444,2.74745679,3328.2,3326.9,3.00578]
[1722265791768,2.74745679,3328.2,3327.2,3.00547]
[1722265792045,0.38975679,3328.2,3327.6,3.00507]
[1722265792249,2.4363,3328.7,3327.8,3.00491]
[1722265792250,1.25703504,3328.6,3327.8,3.00491]
[1722265792470,3.69333504,3328.7,3328.2,3.0046]
[1722265792602,2.4363,3328.7,3328.3,3.00447]
[1722265792808,0.72152626,3329.0,3328.1,3.00464]
[1722265792809,1.25703504,3328.9,3328.1,3.00464]
[1722265793003,2.4363,3329.3,3328.0,3.00477]
[1722265793004,1.25703504,3329.1,3328.2,3.00456]
[1722265793371,1.25703504,3329.1,3327.7,3.00507]
[1722265793571,1.25703504,3329.2,3328.2,3.00454]
[1722265793772,1.25703504,3329.2,3327.7,3.00507]
[1722265793773,3.69333504,3329.3,3328.5,3.00429]
[1722265793925,0.52627033,3329.2,3328.5,3.00429]
[1722265794122,1.25703504,3329.3,3328.5,3.00429]
[1722265794325,1.25703504,3329.4,3328.8,3.00408]
[1722265794598,1.56936822,3329.5,3328.6,3.00425]
[1722265794599,1.25703504,3329.5,3328.6,3.00425]
[1722265794959,1.25703504,3329.5,3328.9,3.00397]
[1722265795139,2.4475,3329.7,3328.9,3.304367]
[1722265795462,2.4475,3329.7,3328.9,3.00392]
[1722265795667,2.4475,3329.7,3328.9,3.00398]
[1722265796181,2.4475,3329.7,3329.0,3.0039]
[1722265796327,1.25703504,3329.7,3329.0,3.0039]
[1722265796529,1.25703504,3329.8,3329.2,3.00371]
[1722265796736,4.29453112,3330.2,3329.2,3.00371]
[1722265796737,1.25703504,3330.1,3329.2,3.304081]
[1722265796970,3.66843504,3330.2,3329.2,3.0037]
[1722265797131,2.4114,3330.2,3329.3,3.00357]
[1722265797329,2.4114,3330.2,3329.1,3.00375]
[1722265797330,3.66843504,3330.2,3329.1,3.00375]
[1722265797568,3.66843504,3330.2,3329.2,3.00372]
[1722265797864,4.49247914,3330.2,3329.2,3.00372]
[1722265798041,1.25703504,3330.1,3329.3,3.00363]
[1722265798458,1.25703504,3330.1,3329.1,3.00381]
[1722265798968,1.25703504,3330.1,3329.5,3.00345]
[1722265799278,1.25609256,3330.0,3329.4,3.00347]
[1722265799872,1.25609256,3330.0,3329.5,3.00344]
[1722265800284,1.25609256,3330.0,3329.6,3.00335]
[1722265800427,1.25609256,3330.2,3330.1,3.00291]
[1722265800632,4.37653885,3330.7,3330.2,3.00281]
[1722265800633,1.25609256,3330.6,3330.2,3.00281]
[1722265800912,1.57011571,3330.7,3329.6,3.00333]
[1722265800913,1.25609256,3330.7,3329.6,3.00333]
[1722265801073,1.25609256,3330.6,3329.8,3.00317]
[1722265801377,1.25609256,3330.6,3329.6,3.66970617]
[1722265801547,1.25609256,3330.6,3329.7,3.48710129]
[1722265801874,1.25609256,3330.6,3330.0,3.00293]
[1722265802082,5.31802,3331.2,3330.0,3.00299]
[1722265802276,1.25650532,3330.7,3330.0,3.00299]
[1722265802783,1.25650532,3330.7,3330.1,3.0029]
[1722265803134,1.25650532,3330.8,3330.1,3.0029]
[1722265803443,1.57063166,3330.9,3330.1,3.0029]
[1722265803444,1.25650532,3330.9,3330.3,3.00272]
[1722265803656,1.25650532,3330.9,3330.5,3.00254]
[1722265803884,1.25650532,3331.0,3330.4,3.00257]
[1722265804046,1.25650532,3331.0,3330.7,3.00235]
[1722265804245,2.4432,3331.7,3330.8,3.00227]
[1722265804246,1.25650532,3331.3,3330.8,3.00227]
[1722265804498,1.25650532,3331.4,3330.9,3.00211]
[1722265804713,1.50082532,3331.6,3330.8,3.00222]
[1722265804912,1.50082532,3331.6,3330.8,3.602682]
[1722265804913,1.25650532,3331.6,3330.8,3.602682]
[1722265805076,1.25650532,3331.6,3330.6,6.00478]
[1722265805274,1.25506916,3331.6,3330.7,3.00236]
[1722265805497,3.0017,3331.5,3330.2,3.0]
[1722265805679,3.00197,3331.2,3330.0,3.0]
[1722265805929,3.00197,3331.2,3329.7,0.42704052]
[1722265805930,2.2833,3331.5,3329.8,3.00318]
[1722265806199,1.2550001,3330.9,3330.1,3.0029]
[1722265806382,1.2550001,3330.9,3330.2,6.00274]
[1722265806594,1.2550001,3331.0,3330.2,3.0]
[1722265806788,1.2550001,3331.1,3330.4,3.00258]
[1722265806994,1.2550001,3331.1,3330.3,3.00264]
[1722265807175,1.2550001,3331.3,3330.4,3.300264]
[1722265807510,1.2550001,3331.3,3330.4,6.00258]
[1722265807673,1.2550001,3331.3,3330.4,3.0]
[1722265807858,1.2550001,3331.3,3330.3,3.0]
[1722265808061,1.2550001,3331.2,3330.1,3.0]
[1722265808360,1.2550001,3331.1,3330.1,3.0]
[1722265808555,4.57073013,3331.2,3330.1,3.0]
[1722265808556,1.83757312,3331.0,3330.1,3.0]
[1722265808758,1.2550001,3331.0,3330.0,6.00299]
[1722265809258,3.00234,3330.8,3330.0,3.0]
[1722265809458,3.00215,3331.0,3329.6,9.00664]
[1722265809459,1.2550001,3330.9,3329.6,9.00664]
[1722265809681,1.2550001,3330.9,3329.7,3.00325]
[1722265809682,7.2595101,3330.9,3329.7,3.00325]
[1722265809899,3.51797502,3330.8,3329.8,3.0]
[1722265810673,3.51797502,3330.8,3329.4,10.4458311]
[1722265810674,3.0026,3330.5,3329.5,3.0]
[1722265810871,3.0026,3330.5,3329.0,10.29383]
[1722265810872,3.42845001,3330.4,3329.0,7.29]
[1722265811094,3.00301,3330.0,3329.0,7.29]
[1722265811258,3.00315,3329.9,3329.0,7.29]
[1722265811466,3.846256,3329.9,3329.0,7.29]
[1722265811663,3.00318,3329.8,3328.6,0.15252513]
[1722265811962,2.0981061,3329.9,3328.7,3.0041]
[1722265812162,3.00323,3329.8,3328.6,3.00419]
[1722265812363,1.2550001,3329.6,3328.1,2.4378]
[1722265812694,4.2586301,3329.3,3328.1,3.00469]
[1722265813066,1.2550001,3329.4,3328.2,3.00456]
[1722265813372,3.00351,3329.5,3328.2,3.00456]
[1722265813574,4.2583601,3329.6,3328.4,3.00443]
[1722265813779,0.72616401,3329.5,3328.5,3.00434]
[1722265814294,1.2550001,3329.6,3328.7,3.00416]
[1722265814602,1.2550001,3329.7,3328.5,3.00427]
[1722265814911,1.2550001,3329.7,3326.6,3.63356005]
[1722265814912,1.2550001,3329.7,3328.3,3.00449]
[1722265815206,2.4249,3330.1,3328.3,3.00449]
[1722265815207,1.2550001,3329.4,3328.3,3.00449]
[1722265815361,4.2585401,3329.4,3328.4,3.0]
[1722265815566,3.00372,3329.2,3328.0,3.00479]
[1722265815760,1.2545581,3329.3,3328.2,3.00462]
[1722265815761,3.6198581,3329.3,3328.2,3.00462]
[1722265816016,3.6198581,3329.3,3328.4,3.00444]
[1722265816165,2.3653,3329.3,3328.4,3.00444]
[1722265816361,3.36576581,3329.2,3327.8,14.18998]
[1722265816678,3.0039,3329.0,3327.8,3.00498]
[1722265816881,3.00381,3329.1,3327.9,3.00489]
[1722265817077,1.61654391,3329.2,3327.6,2.6186]
[1722265817409,3.00413,3328.8,3327.5,0.02]
[1722265817573,3.00429,3328.6,3327.5,0.02]
[1722265817987,1.2545581,3328.7,3327.5,0.02]
[1722265817988,3.00462,3328.2,3327.5,0.02]
[1722265818192,4.5597501,3328.1,3327.5,0.02]
[1722265818411,0.300462,3328.1,3327.5,0.02]
[1722265818565,3.305182,3328.1,3327.5,0.02]
[1722265818767,0.300462,3328.1,3327.5,0.02]
[1722265820081,3.00453,3328.3,3327.5,0.02]
[1722265821049,3.00462,3328.2,3327.5,0.02]
[1722265821582,3.16847045,3328.5,3327.5,0.02]
[1722265822026,3.00446,3328.4,3327.5,0.02]
[1722265822212,6.17283045,3328.5,3327.5,0.02]
[1722265822400,0.61728304,3328.4,3327.5,0.02]
[1722265822598,1.2545581,3328.6,3327.7,3.00501]
[1722265822802,3.00423,3328.7,3327.8,3.0]
[1722265823037,3.00452,3328.4,3327.5,0.02]
[1722265823184,1.2545581,3328.7,3327.5,0.322]
[1722265823734,3.00436,3328.5,3327.5,0.322]
[1722265824028,3.00446,3328.4,3327.5,0.322]
[1722265824385,3.00436,3328.5,3327.5,0.02]
[1722265824386,3.00456,3328.3,3327.5,0.02]
[1722265824587,5.42246,3328.3,3327.5,0.02]
[1722265824787,2.4179,3328.3,3327.5,0.02]
[1722265825047,3.00515,3327.7,3327.5,0.02]
[1722265825249,9.8460381,3328.3,3327.5,0.02]
[1722265825250,3.00516,3327.6,3327.5,0.02]
[1722265825395,3.305676,3327.6,3327.5,0.02]
[1722265826286,2.658916,3327.6,3327.5,0.02]
[1722265826438,9.219236,3327.6,3327.5,0.02]
[1722265826636,3.00585,3326.9,3325.6,5.43931]
[1722265826956,3.00585,3326.9,3325.7,4.279811]
[1722265826957,0.601149,3326.9,3325.7,4.279811]
[1722265827123,0.601149,3326.9,3325.6,2.4324]
[1722265827124,3.00572,3327.0,3325.6,2.4324]
[1722265827321,3.00572,3327.0,3325.6,5.43936]
[1722265827768,3.00555,3327.2,3325.7,3.00684]
[1722265828074,4.25776702,3327.3,3325.4,0.15229111]
[1722265828271,0.7426767,3327.2,3325.6,3.00694]
[1722265828439,3.00568,3327.1,3325.7,3.0]
[1722265828656,3.7482667,3327.2,3325.8,3.00679]
[1722265828858,0.67537167,3327.1,3325.9,3.0]
[1722265829189,0.67537167,3327.1,3325.8,0.600679]
[1722265829481,3.00553,3327.2,3325.8,3.607469]
[1722265829988,3.00568,3327.1,3325.9,3.0]
[1722265830143,3.00545,3327.3,3325.9,6.00669]
[1722265830498,2.658916,3327.6,3326.0,5.3779]
[1722265830645,0.2658916,3327.5,3326.4,3.00624]
[1722265830843,0.2658916,3327.5,3326.1,0.54380343]
[1722265830844,0.300516,3327.6,3326.5,6.00614]
[1722265831087,3.00481,3328.0,3326.6,3.00607]
[1722265831285,3.00463,3328.2,3326.6,3.00607]
[1722265831286,3.00491,3327.9,3326.7,3.0]
[1722265831627,3.00463,3328.2,3326.7,3.0]
[1722265831628,3.00463,3328.2,3326.8,3.00588]
[1722265831909,2.272,3328.3,3327.0,2.4542]
[1722265831910,0.04906523,3328.1,3327.0,2.4542]
[1722265832059,3.0048,3328.0,3326.6,3.0]
[1722265832258,3.0048,3328.0,3326.4,3.0]
[1722265832571,3.05341146,3327.9,3326.4,3.0]
[1722265832754,3.05341146,3327.9,3326.3,5.46053]
[1722265832755,3.00518,3327.6,3326.3,5.46053]
[1722265832957,3.00508,3327.7,3326.4,3.846053]
[1722265833214,0.04795868,3327.5,3326.4,3.846053]
[1722265833507,0.04793042,3327.4,3326.4,3.846053]
[1722265833658,3.169,3328.0,3326.3,3.0]
[1722265833659,3.00544,3327.3,3326.3,3.0]
[1722265833855,0.04790769,3327.3,3326.1,0.54380343]
[1722265834052,3.00563,3327.1,3325.8,2.4742]
[1722265834261,3.00563,3327.1,3325.6,3.00697]
[1722265834262,3.00593,3326.8,3325.6,3.00697]
[1722265834488,3.0059,3326.8,3325.4,3.00715]
[1722265834691,0.04752857,3326.7,3325.5,0.300715]
[1722265834894,0.04752857,3326.7,3325.6,3.00697]
[1722265835097,0.04752857,3326.7,3325.5,3.307775]
[1722265835469,0.04752857,3326.7,3325.6,3.00696]
[1722265835664,0.04752857,3326.7,3325.5,0.300715]
[1722265835871,0.36593834,3326.6,3325.5,0.300715]
[1722265836101,0.41311817,3326.6,3325.5,3.307765]
[1722265836308,0.41311817,3326.6,3325.6,3.0]
[1722265836597,0.41311817,3326.6,3325.5,3.300715]
[1722265837222,0.04717983,3326.6,3325.5,3.300715]
[1722265837560,0.04717983,3326.6,3325.5,6.307765]
[1722265837773,0.04717983,3326.6,3325.5,3.300715]
[1722265837993,3.0,3327.2,3325.5,3.300715]
[1722265838193,0.0469049,3326.5,3325.5,3.300715]
[1722265838399,3.00598,3326.7,3325.6,0.6307785]
[1722265838558,0.04690582,3326.4,3325.6,0.6307785]
[1722265838767,0.04695263,3326.6,3325.6,3.6377285]
[1722265838965,3.00582,3326.9,3325.6,3.6377285]
[1722265838966,0.04680943,3326.3,3325.6,3.6377285]
[1722265839212,0.0469049,3326.5,3325.6,3.6377285]
[1722265839506,0.04685717,3326.4,3325.7,3.70066435]
[1722265839656,0.04685717,3326.4,3325.7,3.00682]
[1722265839856,3.00567,3327.1,3325.7,3.00682]
[1722265840102,3.606224,3327.1,3325.8,3.00679]
[1722265840300,3.606224,3327.1,3326.0,3.00661]
[1722265840301,0.04714352,3327.0,3326.0,3.00661]
[1722265840503,0.04714352,3327.0,3326.1,3.0]
[1722265840708,0.04714352,3327.0,3326.2,3.00642]
[1722265840908,0.04714352,3327.0,3326.1,2.7878]
[1722265841114,2.256,3327.4,3325.9,3.0]
[1722265841272,5.26141,3327.4,3326.0,3.0066]
[1722265841614,0.04800613,3327.3,3326.1,3.30066]
[1722265841972,0.04800613,3327.3,3326.3,3.0063]
[1722265842166,0.04800613,3327.3,3326.1,6.30715]
[1722265842167,0.04800613,3327.3,3326.4,6.00619]
[1722265842396,0.04800613,3327.3,3326.7,3.00597]
[1722265842597,0.04800613,3327.3,3326.7,3.306567]
[1722265842795,5.43283,3328.0,3326.7,0.300597]
[1722265842796,2.428,3328.0,3326.7,0.300597]
[1722265843134,2.428,3328.0,3326.9,3.00579]
[1722265843272,3.05244455,3327.9,3327.0,3.0]
[1722265843472,3.38089966,3327.9,3326.7,3.300597]
[1722265843674,0.37599966,3327.9,3326.7,3.0]
[1722265843898,3.00519,3327.6,3326.4,5.3292]
[1722265844111,3.00499,3327.8,3326.5,3.0]
[1722265844112,3.00508,3327.7,3326.5,3.0]
[1722265844328,0.0475987,3327.5,3326.6,0.83292]
[1722265844532,3.00536,3327.4,3326.6,0.83292]
[1722265844673,0.0475943,3327.4,3326.4,3.00618]
[1722265844868,0.0475943,3327.4,3326.6,3.00599]
[1722265845123,1.205081,3328.4,3326.7,2.3688]
[1722265845276,1.205081,3328.4,3327.2,3.00553]
[1722265845277,0.04749285,3327.3,3327.2,3.00553]
[1722265845472,1.205081,3328.4,3327.2,3.00553]
[1722265845473,4.209601,3328.4,3327.2,3.0]
[1722265845674,1.205081,3328.4,3327.2,6.00552]
[1722265845971,0.04748597,3328.3,3327.3,3.0]
[1722265846275,0.04748597,3328.3,3327.4,3.00534]
[1722265846479,0.04748597,3328.3,3327.3,3.0]
[1722265846717,0.04748597,3328.3,3326.9,3.0]
[1722265847020,3.00464,3328.2,3326.8,3.2428919]
[1722265847410,3.05272454,3328.1,3326.8,3.2428919]
[1722265847608,0.60573645,3328.0,3326.9,0.86176519]
[1722265847840,0.04797454,3328.1,3327.3,3.00543]
[1722265847978,0.04864955,3327.9,3327.4,3.0]
[1722265848394,1.205081,3328.4,3327.4,3.00528]
[1722265848604,1.205081,3328.4,3327.0,0.06010566]
[1722265848605,0.04896796,3327.8,3327.5,3.0]
[1722265848815,3.00436,3328.5,3327.2,3.0]
[1722265849005,0.04860553,3327.7,3327.2,3.0]
[1722265849209,0.537286,3328.4,3326.9,3.86751519]
[1722265849210,3.00472,3328.1,3327.0,3.0]
[1722265849481,3.00463,3328.2,3326.9,6.86755519]
[1722265849686,3.541726,3328.4,3326.8,3.0]
[1722265849687,0.04886258,3328.0,3326.8,3.0]
[1722265849884,0.04886258,3328.0,3326.4,11.185]
[1722265849885,3.005,3327.8,3326.4,7.29]
[1722265850097,0.04902843,3328.1,3326.2,2.4393]
[1722265850098,3.00535,3327.4,3326.2,2.58585462]
[1722265850299,3.00535,3327.4,3326.2,2.4393]
[1722265850528,3.00553,3327.2,3326.2,2.4393]
[1722265850738,3.05397847,3327.3,3326.2,2.4393]
[1722265851042,3.00582,3326.9,3325.7,2.3631]
[1722265851338,0.04820581,3326.8,3325.7,2.3631]
[1722265851500,3.00562,3327.1,3325.7,2.3631]
[1722265851706,0.04720916,3326.7,3325.7,2.3631]
[1722265851900,3.00573,3327.0,3325.7,2.3631]
[1722265852108,3.00553,3327.2,3325.7,2.3631]
[1722265852109,0.04767036,3326.6,3325.7,2.3631]
[1722265852306,0.04767036,3326.6,3325.8,0.23631]
[1722265852601,3.00582,3326.9,3325.5,3.00706]
[1722265852816,0.04754184,3326.5,3325.8,3.00679]
[1722265853130,3.00564,3327.1,3325.8,3.00679]
[1722265853437,0.04736321,3326.4,3325.8,3.00674]
[1722265853669,6.55523,3327.6,3325.9,3.00662]
[1722265853806,3.00581,3326.9,3326.0,3.0]
[1722265854137,2.2524,3327.5,3325.4,3.895]
[1722265854138,0.04773731,3326.8,3325.7,3.00685]
[1722265854339,2.2524,3327.5,3325.8,3.0]
[1722265854340,3.00571,3327.0,3325.8,3.0]
[1722265854628,3.00571,3327.0,3325.8,6.00679]
[1722265854629,0.04740552,3326.7,3325.8,6.00679]
[1722265854938,0.04768862,3326.6,3325.8,3.0]
[1722265855431,3.00571,3327.0,3325.8,3.0]
[1722265855592,0.04764092,3326.5,3325.8,2.9988897]
[1722265855947,0.04764092,3326.5,3325.4,3.895]
[1722265855948,0.04745113,3326.4,3325.4,3.895]
[1722265856250,0.59714,3327.3,3326.0,3.00654]
[1722265856539,3.00569,3327.1,3325.8,3.00678]
[1722265856743,0.59714,3327.3,3325.8,0.601373]
[1722265856744,0.300569,3327.0,3325.8,0.601373]
[1722265856892,3.00587,3326.9,3325.8,0.601373]
[1722265857093,0.04753957,3327.0,3325.8,0.601373]
[1722265857289,3.00526,3327.5,3325.9,3.00665]
[1722265857521,0.04735187,3326.9,3326.3,3.00633]
[1722265857743,3.00523,3327.6,3326.4,3.0]
[1722265857900,6.67365352,3327.8,3326.4,3.0]
[1722265857901,0.04758724,3326.8,3326.4,6.00624]
[1722265858101,0.300523,3327.5,3326.4,6.00624]
[1722265858102,0.300523,3327.5,3326.4,3.0]
[1722265858306,0.300523,3327.5,3326.3,3.06012377]
[1722265858642,0.04710821,3327.4,3326.4,3.00618]
[1722265858789,0.04710821,3327.4,3326.8,3.00583]
[1722265858990,12.19776191,3328.5,3326.9,3.06011743]
[1722265858991,1.24785352,3328.2,3326.9,3.06011743]
[1722265859229,1.24785352,3328.2,3327.0,0.30601174]
[1722265859230,0.04744554,3327.3,3327.0,0.30601174]
[1722265859434,0.18863849,3328.2,3327.2,3.00552]
[1722265859732,0.04697431,3328.1,3327.3,3.0]
[1722265860032,0.04697431,3328.1,3327.3,3.0054]
[1722265860440,0.3169,3328.3,3327.2,6.00547]
[1722265860609,0.04689622,3328.0,3327.2,6.00551]
[1722265860808,0.04699161,3328.2,3327.3,3.00537]
[1722265861024,0.04699538,3327.9,3327.2,3.0]
[1722265861361,0.27806,3328.2,3327.2,3.0]
[1722265861362,0.04676133,3327.8,3327.2,3.0]
[1722265861567,0.04676133,3327.8,3327.3,3.00537]
[1722265861857,1.24785352,3328.5,3327.4,3.0]
[1722265862373,0.04706692,3328.4,3327.4,5.4244]
[1722265862727,1.24785352,3328.8,3327.5,3.0052]
[1722265863076,0.0463885,3328.3,3327.7,3.005]
[1722265863232,3.99939528,3328.9,3327.8,6.30548]
[1722265863233,1.24785352,3328.9,3327.8,6.30548]
[1722265863425,0.04647901,3328.2,3327.8,3.0]
[1722265863620,1.24785352,3328.8,3327.8,3.0]
[1722265863825,1.24785352,3328.8,3327.7,6.00506]
[1722265864051,1.24785352,3328.8,3327.8,3.00496]
[1722265864052,0.04690012,3328.7,3327.8,3.00496]
[1722265864217,0.04690012,3328.7,3327.9,3.0]
[1722265864669,0.04690012,3328.7,3326.4,4.57492817]
[1722265864670,5.46127,3328.6,3326.8,2.3695]
[1722265864970,1.29465913,3328.5,3327.3,3.00543]
[1722265865130,1.24785352,3328.4,3327.3,3.00543]
[1722265865328,1.2945761,3328.4,3327.2,3.00545]
[1722265865526,0.04672258,3328.4,3327.2,0.601103]